bitfinex/quotes_SOLUSD_20240729
["timestamp","ask_amount","ask_price","bid_price","bid_amount"]
[1722250738724,44.59,191.29,191.21,13.15]
[1722250738925,44.59,191.29,191.22,13.15]
[1722250740239,13.15,191.3,191.23,13.15]
[1722250740431,32.7470051,191.31,191.25,13.15]
[1722250740638,45.8970051,191.31,191.24,13.15]
[1722250740823,32.7470051,191.31,191.16,19.97936696]
[1722250741023,32.7470051,191.31,191.24,13.15]
[1722250741024,44.59,191.31,191.24,13.15]
[1722250741418,44.59,191.31,191.23,13.15]
[1722250741833,44.59,191.31,191.24,13.15]
[1722250742025,1.30702018,191.3,191.24,13.15]
[1722250742225,1.30705445,191.29,191.17,65.34]
[1722250742435,44.59,191.3,191.23,13.15]
[1722250743255,13.15,191.3,191.24,13.15]
[1722250743435,44.6,191.31,191.24,13.15]
[1722250744928,44.6,191.31,191.17,65.34]
[1722250745135,1.30708919,191.3,191.24,13.15]
[1722250745334,31.45,191.31,191.25,13.15]
[1722250745723,31.45,191.31,191.26,13.15]
[1722250746625,31.45,191.31,191.25,13.15]
[1722250746842,31.45,191.31,191.2,52.6]
[1722250747147,1.30700757,191.3,191.25,13.15]
[1722250747547,31.45,191.31,191.24,13.15]
[1722250748048,32.75704219,191.31,191.24,13.15]
[1722250748734,31.45,191.31,191.24,13.15]
[1722250749444,13.15,191.3,191.21,0.34]
[1722250749649,31.45,191.31,191.23,13.15]
[1722250749650,44.6,191.31,191.23,13.15]
[1722250750255,32.75704331,191.31,191.23,13.15]
[1722250750450,45.90704331,191.31,191.23,13.15]
[1722250750646,44.6,191.29,191.16,18.93375878]
[1722250750842,14.45728343,191.28,191.2,13.15]
[1722250751155,6.4891,191.26,191.2,13.15]
[1722250751529,6.4891,191.26,191.21,13.15]
[1722250751936,7.79638491,191.26,191.21,13.15]
[1722250753555,6.4891,191.26,191.21,13.15]
[1722250754958,6.4891,191.26,191.22,13.15]
[1722250755860,6.4891,191.26,191.16,18.93375878]
[1722250756035,6.4891,191.26,191.2,13.15]
[1722250756356,1.30742543,191.25,191.19,13.15]
[1722250757340,89.6,191.25,191.12,15.6792]
[1722250757684,89.6,191.25,191.18,13.15]
[1722250757957,76.45,191.25,191.18,13.15]
[1722250758155,31.45,191.25,191.19,13.15]
[1722250758456,6.4891,191.26,191.21,13.15]
[1722250758658,6.4891,191.26,191.23,13.15]
[1722250759535,6.4891,191.26,191.13,1.04595685]
[1722250759734,45.90728806,191.25,191.14,0.34]
[1722250759933,13.15,191.23,191.14,0.34]
[1722250760143,13.15,191.23,191.12,17.93178322]
[1722250760144,1.30763412,191.22,191.12,17.93178322]
[1722250760438,31.45,191.23,191.16,13.15]
[1722250760832,1.3076777,191.22,191.16,13.15]
[1722250761064,31.45,191.23,191.1,2.2907505]
[1722250761227,31.45,191.21,191.1,52.6]
[1722250761438,31.45,191.21,191.16,13.15]
[1722250761869,31.45,191.21,191.11,1.0462289]
[1722250761870,31.45,191.21,191.17,13.15]
[1722250762069,31.45,191.21,191.11,1.0462289]
[1722250762373,44.6,191.23,191.16,13.15]
[1722250762574,76.45,191.22,191.16,13.15]
[1722250763158,76.45,191.22,191.09,3.08518457]
[1722250763360,76.45,191.22,191.15,13.15]
[1722250763750,47.4936,191.21,191.1,0.34]
[1722250764067,37.4571,191.2,191.09,3.08518457]
[1722250764267,37.4571,191.2,191.14,13.15]
[1722250765260,37.4571,191.2,191.1,13.15]
[1722250765466,37.4571,191.2,191.16,13.15]
[1722250765769,37.4571,191.2,191.15,13.15]
[1722250766548,37.4571,191.2,191.11,1.04623589]
[1722250766754,37.4571,191.2,191.15,13.15]
[1722250767361,6.0071,191.2,191.15,13.15]
[1722250767570,6.0071,191.2,191.17,13.15]
[1722250768071,6.0071,191.2,191.16,13.15]
[1722250768574,6.0071,191.2,191.11,20.0]
[1722250768751,6.0071,191.2,191.16,13.15]
[1722250769655,6.0071,191.2,191.12,0.17]
[1722250769984,6.0071,191.2,191.14,13.15]
[1722250770276,6.0071,191.2,191.15,13.15]
[1722250771464,6.0071,191.2,191.17,13.15]
[1722250771776,6.0071,191.2,191.18,13.15]
[1722250772076,6.0222,191.25,191.19,13.15]
[1722250772772,6.0222,191.25,191.2,13.15]
[1722250773142,6.0222,191.25,191.21,13.15]
[1722250773480,6.0222,191.25,191.23,13.15]
[1722250773777,6.0222,191.25,191.22,13.15]
[1722250774460,6.0222,191.25,191.23,13.15]
[1722250774667,31.45,191.29,191.23,13.15]
[1722250775766,31.45,191.29,191.22,13.15]
[1722250777887,44.6,191.29,191.22,13.15]
[1722250780279,58.15,191.28,191.14,1.0457878]
[1722250780487,31.45,191.27,191.2,13.15]
[1722250781766,31.45,191.27,191.21,13.15]
[1722250783384,44.6,191.27,191.2,13.15]
[1722250783789,44.6,191.27,191.19,13.15]
[1722250783790,1.30738846,191.26,191.19,13.15]
[1722250784170,14.45738846,191.26,191.19,13.15]
[1722250784573,14.45738846,191.26,191.18,13.15]
[1722250784574,44.6,191.25,191.18,13.15]
[1722250784772,7.4033658,191.24,191.18,13.15]
[1722250784991,1.3075658,191.23,191.18,13.15]
[1722250785186,17.3082658,191.23,191.18,13.15]
[1722250785378,17.3082658,191.23,191.17,13.15]
[1722250787379,16.0007,191.23,191.18,13.15]
[1722250788208,16.0007,191.23,191.13,17.42279819]
[1722250788209,1.30757178,191.22,191.13,2.24359819]
[1722250788372,1.30757178,191.22,191.16,13.15]
[1722250788878,47.4507,191.23,191.17,13.15]
[1722250789690,47.4507,191.23,191.19,13.15]
[1722250791508,16.0007,191.23,191.19,13.15]
[1722250791705,6.0958,191.24,191.2,13.15]
[1722250792007,6.0958,191.24,191.19,13.15]
[1722250796507,6.0958,191.24,191.17,13.15]
[1722250796806,1.30757567,191.23,191.17,13.15]
[1722250798714,37.5458,191.24,191.17,13.15]
[1722250799206,1.30757503,191.23,191.17,13.15]
[1722250799609,37.5458,191.24,191.18,13.15]
[1722250800091,1.30751265,191.23,191.18,13.15]
[1722250800406,50.6958,191.24,191.12,2.41258114]
[1722250800611,31.45,191.23,191.16,13.15]
[1722250800791,31.45,191.23,191.17,13.15]
[1722250800990,32.75756888,191.23,191.17,13.15]
[1722250801214,45.90756888,191.23,191.16,13.15]
[1722250802309,76.45,191.22,191.16,13.15]
[1722250802726,67.6260509,191.21,191.12,2.24258114]
[1722250802910,67.6260509,191.21,191.14,13.15]
[1722250803408,66.3183,191.21,191.14,13.15]
[1722250804110,67.62609423,191.21,191.14,13.15]
[1722250804287,31.45,191.19,191.13,13.15]
[1722250804917,31.45,191.19,191.09,3.01559071]
[1722250805107,1.30795774,191.18,191.13,13.15]
[1722250805322,1.30796073,191.17,191.09,3.01559071]
[1722250805498,89.6,191.18,191.11,13.15]
[1722250806205,1.30804324,191.17,191.11,13.15]
[1722250806717,89.6,191.18,191.11,13.15]
[1722250807189,76.45,191.18,191.12,13.15]
[1722250807511,31.45,191.19,191.14,13.15]
[1722250807817,21.7183,191.21,191.15,13.15]
[1722250808000,21.7183,191.21,191.16,13.15]
[1722250808518,21.7183,191.21,191.19,13.15]
[1722250808720,6.2568,191.21,191.19,13.15]
[1722250809010,31.45,191.24,191.19,13.15]
[1722250811915,31.45,191.24,191.2,13.15]
[1722250812215,31.45,191.24,191.15,2.25483055]
[1722250812406,31.45,191.24,191.18,13.15]
[1722250812719,31.45,191.24,191.2,13.15]
[1722250813628,6.2894,191.26,191.22,13.15]
[1722250814732,6.2894,191.26,191.2,13.15]
[1722250816517,6.2894,191.26,191.21,13.15]
[1722250820825,6.2894,191.26,191.22,13.15]
[1722250822412,6.2894,191.26,191.15,16.786635]
[1722250822621,6.2894,191.26,191.22,13.15]
[1722250823803,6.2894,191.26,191.23,13.15]
[1722250827630,6.2894,191.26,191.22,13.15]
[1722250832533,6.2894,191.26,191.22,15.36940442]
[1722250833221,6.2894,191.26,191.23,13.15]
[1722250833418,15.8118,191.3,191.22,2.21940442]
[1722250833727,15.8118,191.3,191.25,13.15]
[1722250833921,15.8118,191.3,191.26,13.15]
[1722250834812,15.8118,191.3,191.27,13.15]
[1722250835336,6.1945,191.31,191.28,13.15]
[1722250835715,47.3889,191.35,191.29,13.15]
[1722250835918,47.3889,191.35,191.3,13.15]
[1722250837139,47.3889,191.35,191.29,13.15]
[1722250837913,1.3067724,191.34,191.29,13.15]
[1722250839517,1.3067724,191.34,191.28,13.15]
[1722250839924,13.15,191.33,191.26,13.15]
[1722250840119,1.30697172,191.32,191.26,13.15]
[1722250840726,14.45697172,191.32,191.25,13.15]
[1722250840928,45.90697172,191.32,191.25,13.15]
[1722250841141,44.6,191.31,191.24,13.15]
[1722250841320,1.3071596,191.3,191.24,13.15]
[1722250841519,1.30715673,191.29,191.24,13.15]
[1722250841933,1.30715673,191.29,191.24,15.40687189]
[1722250842527,1.30716645,191.28,191.24,15.40687189]
[1722250842732,7.52966645,191.3,191.24,13.15]
[1722250843041,1.30712436,191.29,191.24,13.15]
[1722250843440,1.30712436,191.29,191.23,13.15]
[1722250843633,60.97362436,191.29,191.21,13.15]
[1722250844118,1.3072558,191.28,191.21,13.15]
[1722250844720,14.4572558,191.28,191.21,13.15]
[1722250845032,1.3072558,191.28,191.21,13.15]
[1722250845238,46.5165,191.29,191.23,13.15]
[1722250845544,46.5165,191.29,191.24,13.15]
[1722250845724,6.2225,191.3,191.26,13.15]
[1722250847018,6.2225,191.3,191.2,52.6]
[1722250847019,6.2225,191.3,191.27,13.15]
[1722250849241,31.45,191.33,191.27,13.15]
[1722250849750,1.30697402,191.32,191.27,13.15]
[1722250849930,1.30684047,191.33,191.27,13.15]
[1722250850340,1.30684066,191.32,191.27,13.15]
[1722250850653,1.30684079,191.33,191.27,13.15]
[1722250850945,1.30684079,191.32,191.27,13.15]
[1722250851142,1.30684095,191.33,191.27,13.15]
[1722250851347,1.30697792,191.32,191.25,13.15]
[1722250853143,13.15,191.33,191.26,13.15]
[1722250853729,1.3069771,191.32,191.18,2.25857942]
[1722250853944,1.3069771,191.32,191.25,13.15]
[1722250853945,31.45,191.31,191.25,13.15]
[1722250854154,1.30711719,191.3,191.25,13.15]
[1722250854448,31.45,191.31,191.25,13.15]
[1722250856756,44.6,191.31,191.24,13.15]
[1722250857447,45.90712105,191.31,191.24,13.15]
[1722250859648,31.45,191.31,191.25,13.15]
[1722250860748,44.6,191.33,191.26,13.15]
[1722250861251,1.30702576,191.32,191.25,13.15]
[1722250861465,76.45,191.32,191.25,13.15]
[1722250861641,31.45,191.32,191.25,13.15]
[1722250862359,32.75702051,191.32,191.25,13.15]
[1722250863053,31.45,191.32,191.25,13.15]
[1722250864736,31.45,191.32,191.22,2.24160105]
[1722250864737,44.6,191.32,191.24,13.15]
[1722250865734,1.30708051,191.31,191.22,2.24160105]
[1722250866048,1.30708051,191.31,191.24,13.15]
[1722250867056,14.45708051,191.31,191.23,13.15]
[1722250867247,45.90708051,191.31,191.23,13.15]
[1722250868437,44.6,191.27,191.17,2.25231574]
[1722250868641,45.90747307,191.26,191.18,13.15]
[1722250868839,31.45,191.26,191.19,13.15]
[1722250869662,1.30742161,191.25,191.19,13.15]
[1722250870063,31.45,191.26,191.19,13.15]
[1722250870286,31.45,191.26,191.2,13.15]
[1722250870757,1.30738131,191.25,191.2,13.15]
[1722250870972,1.30738131,191.25,191.19,13.15]
[1722250871141,14.45738131,191.25,191.18,13.15]
[1722250871538,14.45738131,191.25,191.17,13.15]
[1722250872242,45.90738131,191.25,191.17,13.15]
[1722250872441,44.6,191.25,191.17,13.15]
[1722250873356,89.6,191.24,191.17,13.15]
[1722250873556,1.30763589,191.23,191.17,13.15]
[1722250873751,89.6,191.24,191.17,13.15]
[1722250874158,1.30763491,191.23,191.17,13.15]
[1722250874556,44.6,191.25,191.17,13.15]
[1722250874956,44.6,191.25,191.12,18.38066448]
[1722250875264,44.6,191.25,191.17,13.15]
[1722250875464,13.15,191.24,191.17,13.15]
[1722250875768,14.45763735,191.23,191.16,13.15]
[1722250876454,14.45763735,191.23,191.15,13.15]
[1722250876643,16.3003,191.21,191.15,13.15]
[1722250876847,16.3003,191.21,191.14,13.15]
[1722250876848,1.30780335,191.2,191.14,13.15]
[1722250877039,16.3003,191.21,191.15,13.15]
[1722250877440,1.30778594,191.2,191.15,13.15]
[1722250878261,16.3003,191.21,191.15,13.15]
[1722250878457,16.3003,191.21,191.14,13.15]
[1722250878651,1.30778743,191.2,191.14,13.15]
[1722250878858,16.3003,191.21,191.15,13.15]
[1722250879165,6.5174,191.22,191.19,13.15]
[1722250879469,31.45,191.25,191.2,13.15]
[1722250879850,31.45,191.25,191.21,13.15]
[1722250880062,15.31,191.26,191.21,13.15]
[1722250880368,6.0262,191.27,191.23,13.15]
[1722250881371,6.0262,191.27,191.24,13.15]
[1722250882568,6.0262,191.27,191.23,13.15]
[1722250882569,1.30721694,191.26,191.23,13.15]
[1722250882746,1.30721694,191.26,191.22,13.15]
[1722250883651,1.30721694,191.26,191.21,13.15]
[1722250884567,6.0262,191.27,191.21,13.15]
[1722250884964,1.30728499,191.26,191.21,13.15]
[1722250885852,1.30728499,191.26,191.22,13.15]
[1722250887254,6.0262,191.27,191.22,13.15]
[1722250887654,1.30728383,191.26,191.22,13.15]
[1722250888168,1.30728383,191.26,191.15,0.17]
[1722250888371,1.30728383,191.26,191.21,13.15]
[1722250890904,1.30728383,191.26,191.2,13.15]
[1722250891900,5.98688386,191.27,191.2,13.15]
[1722250893319,1.30732695,191.26,191.2,13.15]
[1722250895877,1.30732695,191.26,191.15,45.34]
[1722250896194,1.30732695,191.26,191.19,13.15]
[1722250896195,90.90747306,191.26,191.19,13.15]
[1722250898220,13.15,191.25,191.18,13.15]
[1722250898421,1.30750054,191.24,191.18,13.15]
[1722250898630,1.30750059,191.23,191.18,13.15]
[1722250899421,1.30750059,191.23,191.15,0.17]
[1722250899607,1.30750059,191.23,191.15,20.0]
[1722250899812,14.45750059,191.23,191.16,13.15]
[1722250900028,62.48850059,191.23,191.16,13.15]
[1722250900355,61.181,191.23,191.15,13.15]
[1722250900818,61.181,191.23,191.16,13.15]
[1722250902138,48.031,191.23,191.16,13.15]
[1722250902331,48.031,191.23,191.1,54.82020155]
[1722250902535,48.031,191.23,191.17,13.15]
[1722250903844,61.181,191.23,191.16,13.15]
[1722250904936,51.199,191.22,191.14,13.15]
[1722250905117,1.30776784,191.21,191.14,13.15]
[1722250908617,51.199,191.22,191.14,13.15]
[1722250908818,51.199,191.22,191.15,13.15]
[1722250909018,38.049,191.22,191.15,13.15]
[1722250909649,38.049,191.22,191.16,13.15]
[1722250910419,38.049,191.22,191.17,13.15]
[1722250911819,38.049,191.22,191.16,13.15]
[1722250912019,1.3076385,191.21,191.16,13.15]
[1722250912260,38.049,191.22,191.16,13.15]
[1722250912435,38.049,191.22,191.17,13.15]
[1722250912745,6.599,191.22,191.17,13.15]
[1722250914642,6.599,191.22,191.18,13.15]
[1722250923346,6.599,191.22,191.17,13.15]
[1722250926774,6.599,191.22,191.16,13.15]
[1722250927971,7.9066042,191.22,191.16,13.15]
[1722250928753,6.599,191.22,191.18,13.15]
[1722250928953,1.30760478,191.21,191.17,13.15]
[1722250929469,6.599,191.22,191.17,13.15]
[1722250929972,1.3076259,191.21,191.16,13.15]
[1722250930159,6.599,191.22,191.16,13.15]
[1722250930867,7.90662605,191.22,191.16,13.15]
[1722250931678,7.90662605,191.22,191.11,2.54534551]
[1722250931978,21.05662605,191.22,191.15,13.15]
[1722250932462,13.15,191.21,191.13,13.15]
[1722250932660,39.35662605,191.22,191.13,13.15]
[1722250932661,45.90777911,191.2,191.13,13.15]
[1722250932851,45.90777911,191.2,191.11,2.20534551]
[1722250932852,13.15,191.19,191.12,13.15]
[1722250933053,1.30793914,191.18,191.11,15.35534551]
[1722250933253,1.30793307,191.17,191.11,13.15]
[1722250934952,1.30793307,191.17,191.1,13.15]
[1722250935151,44.6,191.17,191.1,13.15]
[1722250935564,31.45,191.17,191.1,13.15]
[1722250936153,1.30812069,191.16,191.1,13.15]
[1722250936375,31.45,191.17,191.1,13.15]
[1722250937375,22.8061,191.16,191.09,0.7849095]
[1722250937564,22.8061,191.16,191.1,13.15]
[1722250938767,68.71422075,191.16,191.09,0.7849095]
[1722250939083,44.6,191.15,191.09,0.7849095]
[1722250939974,1.30825371,191.14,191.09,0.7849095]
[1722250940165,44.6,191.15,191.09,0.7849095]
[1722250941953,44.6,191.13,191.09,0.7849095]
[1722250942157,1.30843005,191.12,191.09,0.7849095]
[1722250943065,45.90843005,191.12,191.09,0.7849095]
[1722250950875,44.6,191.11,191.09,0.7849095]
[1722250951087,1.30855679,191.1,191.09,0.7849095]
[1722250951384,31.45,191.11,191.09,0.7849095]
[1722250952374,31.45,191.13,191.09,0.7849095]
[1722250952587,31.45,191.13,191.09,13.9349095]
[1722250953300,6.1667,191.14,191.11,13.15]
[1722250953875,6.1667,191.14,191.1,13.15]
[1722250954064,1.30816801,191.13,191.1,13.15]
[1722250954589,1.30816801,191.13,191.09,13.9349095]
[1722250955477,1.30816118,191.13,191.1,13.15]
[1722250956284,6.1667,191.14,191.1,13.15]
[1722250956485,6.1667,191.14,191.09,0.7849095]
[1722250956691,1.30822791,191.13,191.1,13.15]
[1722250956890,37.6167,191.14,191.09,13.9349095]
[1722250957088,37.6167,191.14,191.09,0.7849095]
[1722250957291,37.6167,191.14,191.09,13.9349095]
[1722250957797,37.6167,191.14,191.09,0.7849095]
[1722250958087,37.6167,191.14,191.09,13.9349095]
[1722250958286,31.45,191.17,191.11,13.15]
[1722250958493,31.45,191.17,191.13,13.15]
[1722250959477,31.45,191.17,191.14,13.15]
[1722250959677,6.0262,191.18,191.14,13.15]
[1722250959878,37.5176,191.22,191.15,13.15]
[1722250961480,50.6676,191.22,191.15,13.15]
[1722250962505,37.5176,191.22,191.15,13.15]
[1722250963501,1.30785127,191.21,191.15,13.15]
[1722250963676,1.30785127,191.21,191.14,13.15]
[1722250964795,31.45,191.2,191.13,13.15]
[1722250965002,31.45,191.2,191.14,13.15]
[1722250967587,31.45,191.2,191.13,13.15]
[1722250968579,31.45,191.2,191.15,13.15]
[1722250968783,31.45,191.21,191.15,13.15]
[1722250969392,44.6,191.21,191.09,2.98337741]
[1722250969594,31.45,191.19,191.14,13.15]
[1722250970811,31.45,191.2,191.14,13.15]
[1722250972505,31.45,191.2,191.09,2.98337741]
[1722250972704,31.45,191.2,191.13,13.15]
[1722250973094,31.45,191.2,191.1,0.17]
[1722250973297,32.757904,191.2,191.13,13.15]
[1722250973607,31.45,191.2,191.13,13.15]
[1722250974111,31.45,191.21,191.13,13.15]
[1722250974299,44.6,191.21,191.14,13.15]
[1722250977014,44.6,191.21,191.13,13.15]
[1722250977315,44.6,191.21,191.14,13.15]
[1722250979217,44.6,191.2,191.09,22.98337741]
[1722250979429,1.30796867,191.19,191.12,13.15]
[1722250979621,1.30796172,191.18,191.12,13.15]
[1722250979803,31.45,191.18,191.12,13.15]
[1722250980200,31.45,191.18,191.13,13.15]
[1722250980520,31.45,191.2,191.14,13.15]
[1722250980818,1.30788432,191.2,191.14,13.15]
[1722250981022,31.45,191.21,191.14,13.15]
[1722250981195,31.45,191.21,191.15,13.15]
[1722250981597,31.45,191.21,191.14,13.15]
[1722250984327,1.30788641,191.2,191.14,13.15]
[1722250984546,31.45,191.21,191.14,13.15]
[1722250985215,44.6,191.2,191.13,13.15]
[1722250986207,1.30796857,191.19,191.13,13.15]
[1722250986629,31.45,191.18,191.09,2.98337741]
[1722250986823,44.6,191.18,191.11,13.15]
[1722250987007,1.30803871,191.17,191.11,13.15]
[1722250987508,1.30803758,191.16,191.11,13.15]
[1722250988109,44.6,191.18,191.11,13.15]
[1722250988309,1.30803683,191.17,191.11,13.15]
[1722250988734,44.6,191.17,191.09,0.7849095]
[1722250988942,31.45,191.15,191.09,13.9349095]
[1722250989104,6.4687,191.16,191.1,13.15]
[1722250989309,6.4687,191.16,191.11,13.15]
[1722250990525,6.4687,191.16,191.12,13.15]
[1722250990906,6.4687,191.16,191.09,0.7849095]
[1722250990907,31.45,191.18,191.14,13.15]
[1722250991114,50.6112,191.21,191.14,13.15]
[1722250991335,37.4612,191.21,191.15,13.15]
[1722250991544,37.4612,191.21,191.16,13.15]
[1722250994839,37.4612,191.21,191.14,13.15]
[1722250996730,37.4612,191.21,191.15,13.15]
[1722250997043,37.4612,191.21,191.11,13.15]
[1722250997044,44.6,191.18,191.11,13.15]
[1722250997244,44.6,191.18,191.09,0.7849095]
[1722250997539,44.6,191.18,191.12,13.15]
[1722250997540,31.45,191.16,191.12,13.15]
[1722250997843,31.45,191.16,191.11,13.15]
[1722250998348,31.45,191.17,191.11,13.15]
[1722250998729,44.6,191.17,191.1,13.15]
[1722250999721,37.8098,191.16,191.1,13.15]
[1722250999936,31.45,191.14,191.09,0.7849095]
[1722251000126,1.30833525,191.13,191.09,0.7849095]
[1722251000419,31.45,191.14,191.09,13.9349095]
[1722251000625,31.45,191.14,191.1,13.15]
[1722251000829,31.45,191.15,191.1,13.15]
[1722251013861,31.45,191.15,191.11,13.15]
[1722251016860,31.45,191.15,191.09,0.7849095]
[1722251017167,31.45,191.15,191.11,13.15]
[1722251019075,31.45,191.15,191.1,13.15]
[1722251021958,31.45,191.15,191.11,13.15]
[1722251025444,31.45,191.15,191.09,0.7849095]
[1722251025847,31.45,191.13,191.09,13.9349095]
[1722251026981,31.45,191.15,191.09,13.9349095]
[1722251027151,31.45,191.13,191.09,13.9349095]
[1722251028259,31.45,191.15,191.1,13.15]
[1722251028461,31.45,191.14,191.1,13.15]
[1722251029456,31.45,191.15,191.1,13.15]
[1722251031850,31.45,191.15,191.09,13.9349095]
[1722251032784,31.45,191.13,191.09,13.9349095]
[1722251034277,31.45,191.13,191.09,0.7849095]
[1722251034450,31.45,191.13,191.09,13.9349095]
[1722251036684,45.90834839,191.13,191.09,0.7849095]
[1722251036985,44.6,191.11,191.09,0.7849095]
[1722251037161,76.45,191.1,191.09,0.7849095]
[1722251038757,31.45,191.11,191.09,0.7849095]
[1722251039682,13.15,191.14,191.09,0.7849095]
[1722251039683,31.45,191.1,191.09,0.7849095]
[1722251040884,76.45,191.1,191.09,0.7849095]
[1722251042674,31.45,191.12,191.09,0.7849095]
[1722251042880,31.45,191.12,191.1,13.15]
[1722251043178,31.45,191.15,191.1,13.15]
[1722251043891,31.45,191.15,191.09,13.9349095]
[1722251044089,1.3083421,191.14,191.09,13.4349095]
[1722251044286,1.3083421,191.14,191.09,0.2849095]
[1722251044874,31.45,191.13,191.09,0.2849095]
[1722251045067,1.30839532,191.12,191.09,0.2849095]
[1722251045888,31.45,191.15,191.09,13.4349095]
[1722251046089,31.45,191.15,191.11,13.15]
[1722251046882,31.45,191.15,191.1,13.15]
[1722251049611,31.45,191.15,191.11,13.15]
[1722251051578,31.48,191.19,191.13,13.15]
[1722251051793,31.48,191.19,191.14,13.15]
[1722251051997,13.15,191.21,191.15,13.15]
[1722251051998,31.48,191.21,191.15,13.15]
[1722251052901,31.48,191.21,191.09,0.2849095]
[1722251052902,48.8138,191.21,191.14,13.15]
[1722251053498,48.8138,191.21,191.13,13.15]
[1722251053829,31.48,191.19,191.13,13.15]
[1722251054030,1.30800492,191.18,191.13,13.15]
[1722251054399,48.8143,191.19,191.12,13.15]
[1722251054601,31.48,191.17,191.11,13.15]
[1722251055025,1.30811581,191.16,191.11,13.15]
[1722251055427,1.30811581,191.16,191.1,13.15]
[1722251055606,1.30811581,191.16,191.09,13.4349095]
[1722251055812,31.48,191.15,191.09,13.4349095]
[1722251056234,1.308242,191.14,191.09,0.2849095]
[1722251056604,31.48,191.13,191.09,0.2849095]
[1722251056837,1.30836046,191.12,191.09,0.2849095]
[1722251057005,31.48,191.13,191.09,0.2849095]
[1722251057435,32.78836038,191.13,191.09,0.2849095]
[1722251058438,1.30838105,191.12,191.09,0.2849095]
[1722251058810,76.48,191.12,191.09,0.2849095]
[1722251059444,31.48,191.12,191.09,0.2849095]
[1722251060626,31.3289,191.12,191.09,0.2849095]
[1722251061719,31.1778,191.11,191.09,0.2849095]
[1722251061907,44.3278,191.11,191.09,0.2849095]
[1722251062234,76.1778,191.1,191.09,0.2849095]
[1722251064141,31.1778,191.12,191.09,0.2849095]
[1722251065224,31.1778,191.11,191.09,0.2849095]
[1722251066306,31.1778,191.13,191.09,0.2849095]
[1722251066508,31.1778,191.11,191.09,0.2849095]
[1722251074227,31.1778,191.12,191.09,0.2849095]
[1722251075240,31.1778,191.14,191.09,0.2849095]
[1722251075542,31.1778,191.12,191.09,0.2849095]
[1722251077755,31.1778,191.13,191.09,0.2849095]
[1722251078648,1.3083905,191.12,191.09,0.2849095]
[1722251078826,48.5135,191.13,191.09,0.2849095]
[1722251079839,44.3278,191.12,191.09,0.2849095]
[1722251080046,1.30843869,191.11,191.09,0.2849095]
[1722251080654,44.3278,191.12,191.09,0.2849095]
[1722251080848,44.3278,191.13,191.09,0.2849095]
[1722251081452,31.1778,191.13,191.09,0.2849095]
[1722251081635,31.48,191.17,191.09,13.4349095]
[1722251081836,31.48,191.17,191.11,13.15]
[1722251083362,1.30804641,191.16,191.1,13.15]
[1722251083863,1.30804641,191.16,191.09,13.4349095]
[1722251084154,44.63,191.17,191.09,0.2849095]